bitfinex/quotes_SOLUSD_20250912
["timestamp","ask_amount","ask_price","bid_price","bid_amount"]
[1757660918202,47.36559401,238.12,238.11,0.22]
[1757660920076,49.57485475,238.12,238.11,0.22]
[1757660921005,51.56515725,238.12,238.11,0.22]
[1757660921298,53.77441799,238.12,238.11,0.22]
[1757660921676,16.51485475,238.12,238.11,0.22]
[1757660921873,49.57485475,238.12,238.11,0.22]
[1757660923079,53.77441799,238.12,238.11,0.22]
[1757660929204,56.90588,238.12,238.11,0.22]
[1757660929704,13.59559401,238.11,238.06,0.12]
[1757660929911,15.80485475,238.09,238.06,0.12]
[1757660930409,23.84640696,238.09,238.06,0.12]
[1757660931496,39.59559401,238.07,238.06,0.12]
[1757660931806,74.86485475,238.07,238.06,0.12]
[1757660931992,75.57485475,238.07,238.06,0.12]
[1757660932515,79.77529999,238.07,238.06,0.12]
[1757660936393,13.59559401,238.07,238.06,0.83]
[1757660936603,46.65559401,238.07,238.06,0.83]
[1757660939507,48.86485475,238.07,238.06,0.12]
[1757660940509,50.85603925,238.07,238.06,0.12]
[1757660943204,13.59559401,238.07,238.06,0.83]
[1757660943417,46.65559401,238.07,238.06,0.12]
[1757660944425,54.31338129,238.07,238.06,0.12]
[1757660946327,50.85603925,238.07,238.06,0.12]
[1757660946504,46.65559401,238.07,238.06,0.83]
[1757660946908,50.85603925,238.07,238.06,0.12]
[1757660947934,54.31338129,238.07,238.06,0.12]
[1757660949730,46.65559401,238.07,238.06,0.12]
[1757660949940,46.65559401,238.07,238.06,0.83]
[1757660951831,46.65559401,238.07,238.06,0.12]
[1757660952137,50.85603925,238.07,238.06,0.12]
[1757660952336,55.02338129,238.07,238.06,0.12]
[1757660954317,13.59559401,238.06,238.05,0.2]
[1757660954735,14.30559401,238.06,238.05,0.2]
[1757660956144,18.5062157,238.06,238.05,0.2]
[1757660957025,21.63747976,238.06,238.05,0.2]
[1757660957556,46.65559401,238.06,238.05,0.91]
[1757660957728,177.75559401,238.06,238.05,0.91]
[1757660958632,181.9562157,238.06,238.05,0.2]
[1757660959227,177.75559401,238.06,238.05,0.91]
[1757660964548,177.78559401,238.06,238.05,0.91]
[1757660965953,13.62559401,238.06,238.05,0.91]
[1757660966122,46.68559401,238.06,238.05,0.91]
[1757660966322,46.68559401,238.06,238.05,5.11079815]
[1757660966543,46.68559401,238.06,238.05,0.91]
[1757660967646,46.68559401,238.06,238.05,5.11079815]
[1757660972145,46.68559401,238.06,238.05,0.91]
[1757660975946,46.68559401,238.06,238.05,5.11079815]
[1757660978549,46.68559401,238.06,238.05,0.2]
[1757660979053,0.03,238.06,238.05,31.05079815]
[1757660979232,33.07,238.06,238.05,31.05079815]
[1757660983137,0.03,238.06,238.05,31.05079815]
[1757660986843,1e-08,238.08,238.05,41.55279352]
[1757660987034,0.75,238.22,238.06,0.65]
[1757660987239,33.04,238.16,238.06,6.24251839]
[1757660987558,33.04,238.16,238.12,26.0]
[1757660987945,33.04,238.16,238.12,26.65]
[1757660989042,13.59559401,238.15,238.12,26.65]
[1757660989852,13.59559401,238.15,238.12,30.84956324]
[1757660990043,13.59559401,238.15,238.12,30.19956324]
[1757660990245,13.59559401,238.15,238.12,30.84956324]
[1757660991065,33.04,238.16,238.12,30.84956324]
[1757661000454,33.07,238.16,238.12,30.84956324]
[1757661000775,33.07,238.16,238.12,30.19956324]
[1757661001154,33.07,238.16,238.12,30.86956324]
[1757661003682,0.03,238.16,238.12,30.86956324]
[1757661004170,0.03,238.17,238.15,26.0]
[1757661004574,0.03,238.17,238.16,0.67]
[1757661005464,0.03,238.17,238.16,4.86885791]
[1757661006656,0.03,238.17,238.16,30.86885791]
[1757661006882,0.03,238.17,238.16,30.19885791]
[1757661007083,0.03,238.17,238.16,4.19885791]
[1757661008187,0.71,238.17,238.16,4.19885791]
[1757661008393,0.06,238.27,238.16,36.36029223]
[1757661008554,0.06,238.27,238.19,26.0]
[1757661008759,0.06,238.27,238.23,26.0]
[1757661009255,0.06,238.27,238.23,0.67]
[1757661009474,0.06,238.27,238.23,26.67]
[1757661009956,0.06,238.27,238.24,40.69106782]
[1757661010762,0.68,238.26,238.24,30.19744795]
[1757661010961,0.68,238.25,238.24,26.0]
[1757661011965,0.68,238.25,238.24,30.19744795]
[1757661012274,0.06,238.27,238.24,30.19744795]
[1757661012470,13.59559401,238.26,238.24,30.19744795]
[1757661013254,0.06,238.27,238.24,30.19744795]
[1757661013462,0.68,238.26,238.24,30.19744795]
[1757661013674,0.06,238.27,238.24,30.19744795]
[1757661013881,13.59559401,238.26,238.24,30.19744795]
[1757661016468,0.06,238.27,238.25,0.67]
[1757661016787,0.06,238.27,238.26,26.67]
[1757661018488,1e-08,238.27,238.26,26.67]
[1757661019586,0.06,238.3,238.26,74.33983462]
[1757661019885,0.06,238.3,238.27,0.67]
[1757661020270,0.06,238.3,238.29,26.0]
[1757661020480,0.06,238.3,238.29,26.67]
[1757661021783,0.06,238.3,238.29,30.8665672]
[1757661022385,0.06,238.3,238.29,4.1965672]
[1757661022575,0.06,238.3,238.29,30.1965672]
[1757661024585,0.06,238.3,238.29,30.8665672]
[1757661026281,0.06,238.3,238.29,30.1965672]
[1757661028198,0.06,238.3,238.29,30.9165672]
[1757661029384,0.06,238.32,238.29,41.40798522]
[1757661029702,0.06,238.32,238.31,26.0]
[1757661030204,0.06,238.32,238.31,26.72]
[1757661030401,0.06,238.36,238.33,26.0]
[1757661030779,0.06,238.36,238.34,0.72]
[1757661031072,0.06,238.36,238.35,4.1955108]
[1757661031073,0.76,238.36,238.35,4.1955108]
[1757661031907,14.35559401,238.36,238.35,4.1955108]
[1757661032109,13.59559401,238.35,238.33,30.19574711]
[1757661032275,14.29559401,238.34,238.33,30.19574711]
[1757661033502,13.59559401,238.34,238.33,30.19574711]
[1757661035199,14.29559401,238.34,238.33,30.19574711]
[1757661038011,14.35559401,238.34,238.33,30.19574711]
[1757661038904,14.35559401,238.34,238.32,0.03]
[1757661039415,0.7,238.33,238.32,0.03]
[1757661039719,14.35559401,238.34,238.33,26.0]
[1757661041102,14.35559401,238.34,238.33,30.19586287]
[1757661042023,13.65559401,238.34,238.33,30.19586287]
[1757661048203,13.65559401,238.34,238.33,26.0]
[1757661048412,14.35559401,238.34,238.33,26.0]
[1757661048608,14.35559401,238.34,238.33,30.19586287]
[1757661048810,13.65559401,238.34,238.33,30.19586287]
[1757661051128,13.65559401,238.34,238.33,30.91586287]
[1757661051338,13.65559401,238.34,238.33,30.19586287]
[1757661058339,13.65559401,238.34,238.32,0.03]
[1757661058637,47.23559401,238.33,238.32,0.03]
[1757661058938,49.44399699,238.33,238.32,0.03]
[1757661060419,53.63985986,238.33,238.32,0.03]
[1757661060638,56.77767247,238.33,238.32,0.03]
[1757661060822,54.56926949,238.33,238.32,0.03]
[1757661061023,56.77784825,238.33,238.32,0.03]
[1757661062422,50.3735824,238.33,238.32,0.03]
[1757661062627,47.23559401,238.33,238.32,0.03]
[1757661063339,46.53559401,238.33,238.32,0.75]
[1757661063542,0.06,238.34,238.32,0.75]
[1757661063742,13.59559401,238.33,238.32,0.03]
[1757661064444,13.59559401,238.33,238.32,30.94603893]
[1757661066327,0.06,238.34,238.33,26.0]
[1757661066638,0.06,238.34,238.33,26.72]
[1757661067432,0.06,238.34,238.33,30.91586287]
[1757661068133,0.06,238.34,238.33,30.19586287]
[1757661068529,0.06,238.34,238.32,0.03]
[1757661068727,0.06,238.34,238.32,4.94595117]
[1757661068928,46.53559401,238.33,238.32,4.22595117]
[1757661069439,46.53559401,238.33,238.32,30.94595117]
[1757661069643,46.53559401,238.33,238.32,30.22595117]
[1757661070029,46.53559401,238.33,238.32,30.94595117]
[1757661070619,46.53559401,238.33,238.32,0.03]
[1757661070944,54.87852903,238.33,238.32,0.03]
[1757661071146,54.56729095,238.33,238.32,0.03]
[1757661071645,50.37142808,238.33,238.32,0.03]
[1757661072353,46.51559401,238.33,238.32,0.03]
[1757661072520,46.57559401,238.33,238.32,0.03]
[1757661072946,46.57559401,238.33,238.32,0.75]
[1757661073144,46.57559401,238.33,238.32,0.03]
[1757661074758,51.47145688,238.33,238.32,0.03]
[1757661076362,54.60609691,238.33,238.32,0.03]
[1757661076523,58.05316906,238.33,238.32,0.03]
[1757661077416,54.60609691,238.33,238.32,0.03]
[1757661077819,58.05316906,238.33,238.32,0.03]
[1757661082837,51.47145688,238.33,238.32,0.03]
[1757661083031,58.05042838,238.33,238.32,0.03]
[1757661084167,58.04937073,238.33,238.32,0.03]
[1757661086550,49.70643571,238.33,238.32,0.73]
[1757661086744,0.06,238.33,238.32,0.73]
[1757661086928,32.98,238.33,238.32,0.73]
[1757661087136,46.57559401,238.33,238.32,30.92603893]
[1757661088733,46.57559401,238.33,238.32,26.73]
[1757661088940,46.57559401,238.33,238.32,0.03]
[1757661089658,46.57559401,238.33,238.32,0.73]
[1757661090657,13.65559401,238.33,238.32,0.73]
[1757661090834,46.57559401,238.33,238.32,0.73]
[1757661092255,46.57559401,238.33,238.32,0.03]
[1757661093137,39.59559401,238.29,238.27,0.03]
[1757661093442,20.0,238.3,238.27,0.03]
[1757661093443,53.29296493,238.28,238.27,0.03]
[1757661093757,54.97282551,238.28,238.27,0.03]
[1757661094542,61.98664023,238.28,238.27,0.03]
[1757661095269,69.37851306,238.28,238.27,0.03]
[1757661096347,72.82558521,238.28,238.27,0.03]
[1757661096847,95.33851306,238.28,238.27,0.03]
[1757661097054,39.59559401,238.24,238.16,0.7]
[1757661097364,17.04266616,238.17,238.16,0.7]
[1757661097560,50.16266616,238.17,238.16,0.7]
[1757661098974,50.14266616,238.17,238.16,0.7]
[1757661102072,50.12266616,238.17,238.16,0.7]
[1757661105769,17.04266616,238.17,238.16,0.7]
[1757661105980,50.08266616,238.17,238.16,0.7]
[1757661106769,50.08266616,238.17,238.16,0.73]
[1757661109479,50.08266616,238.17,238.16,0.03]
[1757661109879,50.08266616,238.17,238.16,0.73]
[1757661111677,17.04266616,238.17,238.16,0.73]
[1757661111884,50.02266616,238.17,238.16,0.73]
[1757661112382,46.57559401,238.17,238.16,0.73]
[1757661113391,46.57559401,238.17,238.16,4.92885791]
[1757661118697,46.57559401,238.17,238.16,0.03]
[1757661120999,46.57559401,238.17,238.16,0.71]
[1757661124374,46.57559401,238.17,238.16,0.03]
[1757661125083,46.57559401,238.17,238.16,0.71]
[1757661128087,13.59559401,238.17,238.16,4.90885791]
[1757661128398,46.53559401,238.17,238.16,4.90885791]
[1757661128977,46.53559401,238.17,238.16,0.71]
[1757661130091,46.53559401,238.17,238.16,0.03]
[1757661130300,49.98266616,238.17,238.16,0.03]
[1757661130499,48.74641227,238.17,238.16,0.03]
[1757661132313,46.53559401,238.17,238.16,0.03]
[1757661134286,46.53559401,238.17,238.16,0.71]
[1757661136091,46.53559401,238.17,238.16,4.90885791]
[1757661137510,49.67407061,238.17,238.16,0.71]
[1757661142023,49.67407061,238.17,238.16,4.90885791]
[1757661143217,49.67886239,238.17,238.16,4.90885791]
[1757661144905,49.6788945,238.17,238.16,4.90885791]
[1757661145213,46.53559401,238.17,238.16,4.90885791]
[1757661145632,49.67889281,238.17,238.16,4.90885791]
[1757661147917,46.53559401,238.17,238.16,4.90885791]
[1757661148529,13.59559401,238.17,238.16,4.90885791]
[1757661148823,46.53559401,238.17,238.16,4.90885791]
[1757661149522,13.59559401,238.17,238.16,4.90885791]
[1757661149821,46.53559401,238.17,238.16,4.90885791]
[1757661150429,49.67878874,238.17,238.16,4.90885791]
[1757661151530,16.73878874,238.17,238.16,4.90885791]
[1757661151922,49.67878874,238.17,238.16,4.90885791]
[1757661152529,16.73878874,238.17,238.16,0.03]
[1757661152704,49.67878874,238.17,238.16,0.03]
[1757661153926,16.73878874,238.17,238.16,0.03]
[1757661154134,49.67878874,238.17,238.16,0.03]
[1757661154739,49.67878874,238.17,238.16,0.71]
[1757661155214,16.73878874,238.17,238.16,0.71]
[1757661155528,49.67878874,238.17,238.16,0.71]
[1757661155729,16.73878874,238.17,238.16,0.71]
[1757661155932,49.67878874,238.17,238.16,0.71]
[1757661156925,49.67878874,238.17,238.16,4.90885791]
[1757661157529,16.73878874,238.17,238.16,4.90885791]
[1757661157710,49.65878874,238.17,238.16,4.90885791]
[1757661159111,46.51559401,238.17,238.16,4.90885791]
[1757661162128,49.65920883,238.17,238.16,4.90885791]
[1757661163842,49.65920883,238.17,238.16,4.22885791]
[1757661164338,49.65927384,238.17,238.16,4.22885791]
[1757661164635,49.65927384,238.17,238.16,0.03]
[1757661167940,49.65927384,238.17,238.16,0.71]
[1757661168327,49.65927384,238.17,238.16,4.90885791]
[1757661169744,46.51559401,238.17,238.16,4.90885791]
[1757661170619,46.51559401,238.17,238.16,0.71]
[1757661171834,46.51559401,238.17,238.16,4.90885791]
[1757661173525,21.25197596,238.46,238.16,15.40600268]
[1757661173526,13.59559401,238.25,238.16,15.40600268]
[1757661173744,13.59559401,238.23,238.17,0.68]
[1757661173943,0.03,238.27,238.17,0.68]
[1757661173944,32.92,238.22,238.17,0.68]
[1757661174135,46.51559401,238.21,238.17,0.68]
[1757661174533,32.92,238.21,238.19,26.0]
[1757661174849,13.59559401,238.2,238.19,26.0]
[1757661175355,13.59559401,238.2,238.19,26.69]
[1757661175560,13.59559401,238.2,238.19,30.88832906]
[1757661176053,0.03,238.27,238.22,26.0]
[1757661176237,32.9,238.26,238.22,26.0]
[1757661176560,32.9,238.26,238.23,0.69]
[1757661177235,13.59559401,238.25,238.23,0.69]
[1757661177740,13.59559401,238.25,238.24,4.19744795]
[1757661177932,13.59559401,238.25,238.24,4.88744795]
[1757661178131,0.03,238.27,238.26,26.0]
[1757661178335,32.93,238.27,238.26,26.0]
[1757661178554,32.93,238.27,238.26,26.69]
[1757661180257,32.93,238.27,238.26,30.8870956]
[1757661180561,46.52559401,238.27,238.26,30.8870956]
[1757661182360,32.93,238.27,238.26,30.8870956]
[1757661182560,0.06,238.29,238.26,30.8870956]
[1757661182561,0.06,238.29,238.26,41.37983462]
[1757661182759,0.06,238.29,238.27,0.69]
[1757661184643,0.06,238.29,238.28,4.19674332]
[1757661184942,0.06,238.29,238.28,30.19674332]
[1757661185146,0.06,238.29,238.28,30.88674332]
[1757661187062,13.65559401,238.34,238.28,30.88674332]
[1757661187063,32.94,238.33,238.31,26.0]
[1757661187252,0.06,238.33,238.31,26.0]
[1757661187459,0.06,238.33,238.31,26.69]
[1757661188341,0.06,238.33,238.31,30.88621501]
[1757661195649,1e-08,238.32,238.31,30.88621501]
[1757661196064,1e-08,238.32,238.31,32.56424333]
[1757661208473,1e-08,238.33,238.31,32.56424333]
[1757661208673,1e-08,238.33,238.31,31.87424333]
[1757661208992,1e-08,238.33,238.32,26.68]
[1757661209189,1e-08,238.33,238.32,2.35788754]
[1757661209372,1e-08,238.33,238.32,6.55392647]
[1757661212075,1e-08,238.33,238.32,5.87392647]
[1757661212267,1e-08,238.33,238.32,32.55392647]
[1757661213790,1e-08,238.33,238.32,1.67788754]
[1757661214085,1e-08,238.33,238.31,26.03]
[1757661214287,1e-08,238.33,238.31,0.71]
[1757661214595,1e-08,238.33,238.31,4.906191]
[1757661216508,1e-08,238.33,238.31,4.226191]
[1757661218377,0.03,238.32,238.31,0.03]
[1757661226896,1e-08,238.33,238.31,0.03]
[1757661227093,0.03000001,238.33,238.31,0.03]
[1757661227687,0.03,238.32,238.31,0.03]
[1757661229204,17.07213259,238.32,238.31,0.03]
[1757661229386,32.82,238.32,238.31,0.03]
[1757661229592,46.41559401,238.32,238.31,0.03]
[1757661234419,54.08817152,238.32,238.31,0.03]
[1757661234908,50.64163294,238.32,238.31,0.03]
[1757661235300,54.08817152,238.32,238.31,0.03]
[1757661237311,13.59559401,238.32,238.31,0.03]
[1757661237506,46.41559401,238.32,238.31,0.03]
[1757661238406,46.41559401,238.32,238.31,0.71]
[1757661240224,46.41559401,238.32,238.31,0.03]
[1757661242329,50.61163294,238.32,238.31,0.03]
[1757661243424,46.41559401,238.32,238.31,0.03]
[1757661244337,46.41559401,238.32,238.31,0.71]
[1757661245624,13.59559401,238.32,238.31,4.90621501]
[1757661245929,46.41559401,238.32,238.31,4.90621501]
[1757661250947,54.05817152,238.32,238.31,0.03]
[1757661251316,46.41559401,238.32,238.31,0.03]
[1757661253737,46.41559401,238.32,238.31,0.71]
[1757661253738,13.59559401,238.32,238.31,0.71]
[1757661253921,46.39559401,238.32,238.31,0.71]
[1757661256139,46.39559401,238.32,238.31,0.03]
[1757661257328,50.59163294,238.32,238.31,0.03]
[1757661257722,46.39559401,238.32,238.31,0.03]
[1757661266653,50.59163294,238.32,238.31,0.03]
[1757661266838,55.96837403,238.32,238.31,0.03]
[1757661269738,55.93837403,238.32,238.31,0.03]
[1757661270139,55.93851089,238.32,238.31,0.03]
[1757661271153,16.73477056,238.32,238.31,0.73]
[1757661271354,49.51477056,238.32,238.31,0.73]
[1757661272841,49.51477056,238.32,238.31,0.03]
[1757661273366,55.94851089,238.32,238.31,0.03]
[1757661273536,55.91851089,238.32,238.31,0.03]
[1757661278361,13.59559401,238.31,238.28,0.03]
[1757661278571,15.80329541,238.29,238.28,0.03]
[1757661278873,18.94247196,238.29,238.28,0.03]
[1757661279052,23.13903916,238.29,238.28,0.03]
[1757661280451,20.93133776,238.29,238.28,0.03]
[1757661280752,23.13903916,238.29,238.28,0.03]
[1757661283676,23.13903916,238.29,238.28,0.73]
[1757661283966,23.13903916,238.29,238.28,0.03]
[1757661285667,55.89903916,238.29,238.28,0.73]
[1757661286068,55.89903916,238.29,238.28,0.03]
[1757661290867,55.92903916,238.29,238.27,0.03]
[1757661291070,147.86477056,238.28,238.27,0.03]
[1757661291257,16.76477056,238.28,238.27,0.03]
[1757661292149,20.93151388,238.28,238.27,0.03]
[1757661292374,16.73477056,238.28,238.27,0.73]
[1757661292559,46.35559401,238.28,238.27,0.73]
[1757661293957,50.55233733,238.28,238.27,0.03]
[1757661294277,52.76003873,238.28,238.27,0.03]
[1757661294671,55.89666411,238.28,238.27,0.03]
[1757661298773,53.68896271,238.28,238.27,0.03]
[1757661298973,55.89666411,238.28,238.27,0.03]
[1757661300895,13.59559401,238.27,238.26,0.03]
[1757661301095,18.96992079,238.27,238.26,0.03]
[1757661301464,18.93992079,238.27,238.26,0.03]
[1757661302463,16.73221939,238.27,238.26,0.7]
[1757661302663,55.87684025,238.27,238.26,0.7]
[1757661302877,55.87684025,238.27,238.26,0.03]
[1757661303186,55.87684025,238.27,238.26,0.7]
[1757661304565,46.33559401,238.27,238.26,0.7]
[1757661305067,177.43559401,238.27,238.26,0.7]
[1757661306376,144.69559401,238.27,238.26,0.7]
[1757661306594,177.43559401,238.27,238.26,4.8970956]
[1757661309687,46.33559401,238.27,238.26,30.8970956]
[1757661313072,46.33559401,238.27,238.26,43.48917518]
[1757661313886,0.06,238.31,238.26,53.9819142]
[1757661314090,46.31559401,238.3,238.29,26.0]
[1757661314286,46.31559401,238.3,238.29,26.67]
[1757661314478,13.59559401,238.3,238.29,30.8665672]
[1757661314775,0.06,238.31,238.29,43.456533]
[1757661314980,0.06,238.31,238.3,0.67]
[1757661315486,1e-08,238.33,238.32,26.0]
[1757661315883,1e-08,238.33,238.32,26.67]
[1757661316394,1e-08,238.33,238.32,39.25785272]
[1757661316576,1e-08,238.33,238.32,43.45389165]
[1757661318101,13.59559401,238.32,238.26,10.52255624]
[1757661318324,17.0445661,238.3,238.27,4.19691946]
[1757661318500,13.59559401,238.28,238.27,30.86691946]
[1757661318682,13.59559401,238.28,238.26,0.03]
[1757661318887,49.7945661,238.27,238.26,0.03]
[1757661319085,49.7645661,238.27,238.26,0.03]
[1757661319914,46.31559401,238.27,238.26,0.7]
[1757661321703,46.31559401,238.27,238.26,0.03]
[1757661323016,49.7645661,238.27,238.26,0.03]
[1757661323393,46.31559401,238.27,238.26,0.03]
[1757661327789,49.7645661,238.27,238.26,0.03]
[1757661328704,46.31559401,238.27,238.26,0.03]
[1757661334106,53.99148556,238.27,238.26,0.03]
[1757661334296,57.12144812,238.27,238.26,0.03]
[1757661334495,61.34902919,238.27,238.26,0.03]
[1757661337001,20.95313764,238.27,238.26,0.03]
[1757661337208,46.29559401,238.27,238.26,0.71]
[1757661339321,46.29559401,238.27,238.26,4.9070956]
[1757661339504,12.87559401,238.27,238.26,30.9070956]
[1757661343917,12.37559401,238.27,238.26,30.9070956]
[1757661349134,12.37559401,238.27,238.26,43.49917519]
[1757661350633,32.7,238.28,238.26,43.49917519]
[1757661350837,32.7,238.28,238.27,0.68]
[1757661351029,0.06,238.31,238.29,26.0]
[1757661351204,32.74,238.3,238.29,26.0]
[1757661351404,0.06,238.3,238.29,26.0]
[1757661351710,0.06,238.3,238.29,26.68]
[1757661351911,0.06,238.3,238.29,39.26785272]
[1757661352434,0.06,238.3,238.29,43.46441992]
[1757661352916,0.06,238.31,238.29,43.46441992]
[1757661353230,0.06,238.32,238.3,0.68]
[1757661353738,0.06,238.32,238.3,13.26679645]
[1757661353924,0.06,238.34,238.3,13.26679645]
[1757661353925,1e-08,238.34,238.33,26.0]
[1757661354319,1e-08,238.34,238.33,26.68]
[1757661354629,0.1,238.37,238.35,26.0]
[1757661354817,1e-08,238.36,238.35,26.0]
[1757661355008,1e-08,238.36,238.35,26.68]
[1757661355812,1e-08,238.36,238.35,28.35795793]
[1757661356413,1e-08,238.36,238.35,32.55346873]
[1757661357110,1e-08,238.36,238.35,35.83285156]
[1757661360032,1e-08,238.36,238.35,32.55346873]
[1757661360335,1e-08,238.36,238.35,5.87346873]
[1757661360637,1e-08,238.36,238.35,31.87346873]
[1757661360836,1e-08,238.36,238.35,5.87346873]
[1757661361040,14.29559402,238.36,238.35,1.67795793]
[1757661361242,14.29559402,238.36,238.35,5.87346873]
[1757661361540,13.59559402,238.36,238.35,4.1955108]
[1757661362326,13.59559402,238.36,238.33,4.19586287]
[1757661362545,13.59559402,238.36,238.33,15.36552006]
[1757661362920,1e-08,238.36,238.35,26.0]
[1757661363122,1e-08,238.36,238.35,26.68]
[1757661363360,1e-08,238.36,238.35,0.68]
[1757661363545,1e-08,238.36,238.35,26.68]
[1757661363949,1e-08,238.36,238.35,28.35802832]
[1757661364123,1e-08,238.36,238.35,27.67802832]
[1757661364447,1e-08,238.36,238.35,30.8755108]
[1757661364625,1e-08,238.36,238.35,4.8755108]
[1757661364826,1e-08,238.36,238.35,30.8755108]
[1757661365231,1e-08,238.36,238.35,43.46230725]
[1757661365438,1e-08,238.36,238.35,30.1955108]
[1757661365744,1e-08,238.36,238.35,4.1955108]
[1757661367322,1e-08,238.36,238.35,30.1955108]
[1757661367744,1e-08,238.36,238.35,4.1955108]
[1757661368147,1e-08,238.36,238.35,30.8755108]
[1757661368527,1e-08,238.36,238.35,43.46072318]
[1757661369824,0.1,238.37,238.35,43.46072318]
[1757661369825,1e-08,238.37,238.35,43.46072318]
[1757661370036,1e-08,238.37,238.36,0.68]
[1757661370741,1e-08,238.37,238.35,16.81072318]
[1757661370924,0.7,238.36,238.35,42.81072318]
[1757661371129,0.7,238.36,238.35,4.2255108]
[1757661371439,14.29559401,238.36,238.35,0.03]
[1757661371632,13.59559401,238.36,238.35,4.2255108]
[1757661372045,13.59559401,238.36,238.35,0.03]
[1757661372431,1e-08,238.37,238.35,0.71]
[1757661372630,1e-08,238.37,238.36,26.0]
[1757661374458,1e-08,238.37,238.36,30.19533478]
[1757661375136,1e-08,238.37,238.36,31.8735039]
[1757661375536,1e-08,238.37,238.36,30.19533478]
[1757661376147,0.70000001,238.37,238.36,30.19533478]
[1757661376862,13.59559401,238.36,238.35,0.03]
[1757661377156,2.90578073,238.37,238.35,0.03]
[1757661377343,14.29559401,238.36,238.35,0.03]
[1757661377542,46.93559401,238.36,238.35,0.03]
[1757661381764,51.13092879,238.36,238.35,0.03]
[1757661382960,46.23559401,238.36,238.35,0.03]
[1757661385763,13.59559401,238.36,238.35,0.73]
[1757661385949,46.23559401,238.36,238.35,0.73]
[1757661386354,32.64,238.36,238.35,26.73]
[1757661386551,13.59559402,238.37,238.35,26.73]
[1757661386753,13.59559402,238.37,238.36,0.7]
[1757661387352,1e-08,238.37,238.36,0.7]
[1757661387769,1e-08,238.37,238.36,30.89533478]
[1757661390073,32.64,238.44,238.36,62.36034567]
[1757661390250,13.59559401,238.44,238.39,26.0]
[1757661391668,13.59559401,238.44,238.4,4.19463087]
[1757661399189,13.59559401,238.44,238.39,26.0]
[1757661400190,15.80137473,238.4,238.35,0.03]
[1757661400489,15.80137473,238.38,238.35,0.03]
[1757661400668,13.59559401,238.38,238.35,0.03]
[1757661402169,13.66559401,238.38,238.35,0.03]
[1757661402403,13.59559401,238.38,238.35,0.03]
[1757661402574,13.59559401,238.38,238.35,0.73]
[1757661402771,13.59559401,238.4,238.35,0.73]
[1757661403074,13.59559401,238.38,238.35,0.73]
[1757661403977,13.59559401,238.4,238.35,0.03]
[1757661404191,13.59559401,238.38,238.35,0.03]
[1757661404698,13.66559401,238.38,238.35,0.03]
[1757661404904,0.07,238.37,238.35,0.03]
[1757661405083,46.21559401,238.36,238.35,0.03]
[1757661406364,13.59559401,238.36,238.35,0.03]
[1757661406571,46.21559401,238.36,238.35,0.73]
[1757661408193,32.62,238.36,238.35,0.73]
[1757661408775,32.62,238.36,238.35,4.9255108]
[1757661410617,127.22,238.43,238.35,15.4142878]
[1757661410775,46.21559401,238.42,238.36,0.7]
[1757661411096,46.21559401,238.42,238.37,14.68305574]
[1757661411390,46.21559401,238.42,238.38,0.7]
[1757661411769,46.21559401,238.42,238.39,0.7]
[1757661411971,46.21559401,238.42,238.4,0.7]
[1757661412490,46.21559401,238.42,238.41,4.19445493]
[1757661413496,46.21559401,238.42,238.38,0.7]
[1757661414006,46.28559401,238.42,238.35,4.2255108]
[1757661414299,46.21559401,238.42,238.36,0.7]
[1757661415400,46.21559401,238.42,238.38,26.0]
[1757661415588,46.21559401,238.42,238.38,26.65]
[1757661416781,46.21559401,238.42,238.39,4.19480682]
[1757661420107,46.21559401,238.42,238.35,4.22536528]